fUSD/lending_fUSD_20250326
["ID","MTS","AMOUNT","RATE_DAILY","PERIOD"]
[356708717,1742999442712,-151.0,0.000249,7]
[356708718,1742999442722,-282.053755,0.000249,7]
[356708719,1742999442731,-151.0,0.000249,7]
[356708720,1742999442741,-151.0,0.000249,7]
[356708721,1742999442751,-408028.35013059,0.000249,3]
[356708722,1742999442772,-1648.58133278,0.000249,3]
[356708723,1742999442785,-413.5406177,0.000249,3]
[356708724,1742999442798,-284.931,0.000249,3]
[356708725,1742999442833,-81.25343309,0.000249,3]
[356708757,1742999443587,-43434.71999999,0.000249,3]
[356708758,1742999443601,-6644.36381426,0.000249,3]
[356708759,1742999443752,-561.77957128,0.000249,3]
[356708796,1742999446856,-1014.297339,0.000249,3]
[356708820,1742999447060,-2006.0,0.000243,2]
[356708822,1742999447069,-766.5524997,0.000249,3]
[356708824,1742999447080,-2429.6131,0.000249,3]
[356708827,1742999447093,-11166.90416393,0.000249,3]
[356708829,1742999447110,-379.09153386,0.000249,3]
[356708831,1742999447121,-468.52499961,0.000249,3]
[356708834,1742999447133,-405.53558812,0.000249,3]
[356708836,1742999447144,-903.49080771,0.000249,3]
[356708839,1742999447165,-49.2423568,0.000249,3]
[356708909,1742999656376,308.0,0.00015,10]
[356708910,1742999694916,1000.0,0.00032236,30]
[356708911,1742999713676,1000.0,0.00032236,30]
[356708912,1742999754360,1000.0,0.00032236,30]
[356708913,1742999760850,1000.0,0.00032236,30]
[356708914,1742999810808,2583.24,0.00032236,30]
[356708962,1742999929587,500.0,0.0003225,120]
[356708970,1743000497328,299.0,0.0003225,30]
[356708973,1743000595373,215980.77828306,0.00025,60]
[356708978,1743000631506,-275.85787264,0.000119,2]
[356708979,1743000631682,-152.68792736,0.000119,2]
[356708980,1743000631691,-716.38207264,0.000119,2]
[356708981,1743000631703,-283.61792736,0.000119,2]
[356708982,1743000631712,-1742.3436,0.000119,2]
[356708983,1743000631721,-150.0,0.00012049,2]
[356708984,1743000631730,-150.0,0.00012917,2]
[356708985,1743000631740,-150.0,0.0001309,2]
[356708986,1743000631749,-150.0,0.00013698,2]
[356708987,1743000631759,-175.0,0.00013699,2]
[356708988,1743000631769,-175.0,0.00013699,2]
[356708989,1743000631779,-175.0,0.00013699,2]
[356708990,1743000631788,-175.0,0.00013699,2]
[356708991,1743000631797,-175.0,0.00013699,2]
[356708992,1743000631806,-175.0,0.00013699,2]
[356708993,1743000631816,-175.0,0.00013699,2]
[356708994,1743000631825,-175.0,0.00013699,2]
[356708995,1743000631835,-175.0,0.00013699,2]
[356708996,1743000631845,-175.0,0.00013699,2]
[356708998,1743000631854,-175.0,0.00013699,2]
[356709000,1743000631864,-175.0,0.00013699,2]
[356709002,1743000631874,-175.0,0.00013699,2]
[356709004,1743000631883,-175.0,0.00013699,2]
[356709006,1743000631892,-175.0,0.00013699,2]
[356709008,1743000631902,-175.0,0.00013699,2]
[356709010,1743000631911,-175.0,0.00013699,2]
[356709012,1743000631921,-175.0,0.00013699,2]
[356709014,1743000631931,-175.0,0.00013699,2]
[356709016,1743000631943,-175.0,0.00013699,2]
[356709018,1743000631952,-186.36,0.00014563,2]
[356709021,1743000631961,-500.0,0.00014563,2]
[356709023,1743000631972,-716.99,0.00014563,2]
[356709025,1743000631981,-250.0,0.00014563,2]
[356709027,1743000631990,-150.0,0.00021917,2]
[356709029,1743000631999,-202.672,0.00022974,2]
[356709030,1743000632008,-654.75,0.0002309,2]
[356709033,1743000632019,-2797.06,0.0002309,2]
[356709035,1743000632028,-150.0,0.00023287,2]
[356709037,1743000632037,-300.0,0.00023562,2]
[356709038,1743000632046,-182.3218,0.0002465,33]
[356709041,1743000632055,-150.0,0.00024657,2]
[356709043,1743000632064,-223.0,0.000247,2]
[356709044,1743000632073,-153.53,0.00024712,30]
[356709047,1743000632082,-210.66,0.00024791,2]
[356709049,1743000632092,-500.0,0.00024875,2]
[356709050,1743000632101,-500.0,0.00024875,2]
[356709052,1743000632110,-500.0,0.00024875,2]
[356709054,1743000632119,-500.0,0.00024875,2]
[356709056,1743000632128,-500.0,0.00024875,2]
[356709058,1743000632137,-475.3919,0.00024875,2]
[356709060,1743000632146,-150.0,0.00024878,2]
[356709062,1743000632155,-368.49367635,0.00024897,2]
[356709064,1743000632164,-6436.7607468,0.00024898,2]
[356709066,1743000632173,-12186.1051563,0.00024898,2]
[356709068,1743000632182,-1611.5682544,0.00024898,2]
[356709070,1743000632191,-895.1823691,0.00024898,2]
[356709073,1743000632203,-268.0486,0.000249,2]
[356709075,1743000632213,-513.79294,0.00024915,2]
[356709077,1743000632222,-769.9,0.00024932,2]
[356709079,1743000632231,-9999.99,0.00024932,2]
[356709081,1743000632240,-45740.61811085,0.0002499,2]
[356709083,1743000632250,-235.647,0.00024999,8]
[356709084,1743000632259,-743.664,0.00024999,8]
[356709087,1743000632269,-27074.11725257,0.00025,2]
[356709089,1743000632278,-250.0,0.00025,2]
[356709091,1743000632287,-23900.0,0.00025023,2]
[356709092,1743000632297,-1000.0,0.00025158,2]
[356709095,1743000632306,-150.0,0.00025285,7]
[356709097,1743000632316,-280.0,0.000253,10]
[356709099,1743000632325,-654.75,0.00025354,2]
[356709101,1743000632334,-210.937,0.0002579,2]
[356709103,1743000632343,-1451.347774,0.00025801,2]
[356709105,1743000632351,-15000.0,0.000259,7]
[356709107,1743000632360,-200.0,0.00025901,2]
[356709109,1743000632370,-426.63893212,0.00026,4]
[356709111,1743000632379,-150.0,0.00026027,2]
[356709113,1743000632388,-191.86,0.0002648,2]
[356709115,1743000632398,-1451.34777393,0.00026504,2]
[356709117,1743000632407,-211.43,0.00026849,2]
[356709119,1743000632416,-157.83,0.00026849,2]
[356709121,1743000632425,-1967.08084223,0.00026875,2]
[356709123,1743000632434,-300.0,0.000269,9]
[356709124,1743000632445,-902.8,0.00026984,2]
[356709127,1743000632457,-300.0,0.00027,2]
[356709129,1743000632468,-150.73,0.0002715,2]
[356709131,1743000632478,-182.32181,0.0002715,39]
[356709147,1743000632487,-2500.0,0.00027197,2]
[356709149,1743000632659,-569.69309084,0.00027197,12]
[356709151,1743000632669,-1451.34777393,0.00027207,2]
[356709153,1743000632678,-150.73,0.00027214,2]
[356709155,1743000632687,-164.65203452,0.00027241,2]
[356709157,1743000632697,-150.73,0.00027278,2]
[356709159,1743000632707,-9806.55040696,0.00027287,2]
[356709161,1743000632716,-140313.5608,0.00027297,2]
[356709162,1743000632725,-402.46593234,0.00027297,2]
[356709164,1743000632734,-150.73,0.00027341,2]
[356709166,1743000632743,-18443.9157778,0.00027363,3]
[356709168,1743000632752,-500.0,0.00027373,2]
[356709170,1743000632762,-131780.26311372,0.00027387,3]
[356709172,1743000632776,-307.05554754,0.00027387,3]
[356709211,1743000637350,-52351.83911674,0.00027387,3]
[356709213,1743000637359,-20656.7380453,0.00027387,3]
[356709215,1743000637369,-162.4,0.00027387,2]
[356709216,1743000637378,-162.4,0.00027387,2]
[356709217,1743000637387,-536.06148642,0.00027397,2]
[356709218,1743000637396,-544.23798111,0.00027397,2]
[356709219,1743000637405,-512.59675354,0.00027397,2]
[356709220,1743000637415,-516.49007049,0.00027397,2]
[356709221,1743000637424,-500.0,0.00027397,2]
[356709222,1743000637433,-280.83161783,0.00027397,2]
[356709223,1743000637445,-500.0,0.00027397,2]
[356709224,1743000637455,-523.63567343,0.00027397,2]
[356709225,1743000637463,-554.94903556,0.00027397,2]
[356709226,1743000637473,-532.46167816,0.00027397,2]
[356709227,1743000637482,-541.38033061,0.00027397,2]
[356709228,1743000637492,-518.5505133,0.00027397,2]
[356709229,1743000637501,-500.0,0.00027397,2]
[356709230,1743000637510,-500.0,0.00027397,2]
[356709231,1743000637522,-521.9307237,0.00027397,2]
[356709232,1743000637531,-522.20140955,0.00027397,2]
[356709233,1743000637540,-500.0,0.00027397,2]
[356709234,1743000637549,-500.0,0.00027397,2]
[356709235,1743000637558,-500.0,0.00027397,2]
[356709236,1743000637568,-500.0,0.00027397,2]
[356709237,1743000637577,-500.0,0.00027397,2]
[356709238,1743000637586,-500.0,0.00027397,2]
[356709239,1743000637595,-500.0,0.00027397,2]
[356709240,1743000637604,-500.0,0.00027397,2]
[356709241,1743000637614,-500.0,0.00027397,2]
[356709242,1743000637623,-500.0,0.00027397,2]
[356709243,1743000637632,-500.0,0.00027397,2]
[356709244,1743000637642,-500.0,0.00027397,2]
[356709245,1743000637651,-500.0,0.00027397,2]
[356709246,1743000637661,-500.0,0.00027397,2]
[356709247,1743000637670,-500.0,0.00027397,2]
[356709248,1743000637679,-500.0,0.00027397,2]
[356709249,1743000637689,-648.17,0.00027397,2]
[356709250,1743000637698,-500.0,0.00027397,2]
[356709251,1743000637707,-533.79886424,0.00027397,2]
[356709252,1743000637716,-500.0,0.00027397,2]
[356709253,1743000637726,-541.49363965,0.00027397,2]
[356709254,1743000637736,-454.70304541,0.00027397,2]
[356709255,1743000637746,-520.82891154,0.00027397,2]
[356709256,1743000637755,-512.87737795,0.00027397,2]
[356709257,1743000637764,-536.84047376,0.00027397,2]
[356709258,1743000637773,-528.16374373,0.00027397,2]
[356709259,1743000637783,-565.06650079,0.00027397,2]
[356709260,1743000637792,-777.44,0.00027397,2]
[356709261,1743000637802,-500.0,0.00027397,2]
[356709262,1743000637811,-500.0,0.00027397,2]
[356709263,1743000637820,-500.0,0.00027397,2]
[356709265,1743000637829,-500.0,0.00027397,2]
[356709268,1743000637839,-502.63907167,0.00027397,2]
[356709270,1743000637848,-500.0,0.00027397,2]
[356709273,1743000637857,-500.0,0.00027397,2]
[356709276,1743000637867,-500.0,0.00027397,2]
[356709279,1743000637876,-500.0,0.00027397,2]
[356709281,1743000637886,-500.0,0.00027397,2]
[356709284,1743000637895,-500.0,0.00027397,2]
[356709287,1743000637905,-495.33284891,0.00027397,2]
[356709290,1743000637915,-155.97690263,0.00027397,2]
[356709292,1743000637924,-150.0,0.00027397,2]
[356709294,1743000637933,-500.0,0.00027397,2]
[356709296,1743000637942,-500.0,0.00027397,2]
[356709298,1743000637951,-500.0,0.00027397,2]
[356709300,1743000637960,-500.0,0.00027397,2]
[356709302,1743000637970,-500.0,0.00027397,2]
[356709303,1743000637978,-500.0,0.00027397,2]
[356709305,1743000637988,-500.0,0.00027397,2]
[356709307,1743000637997,-500.0,0.00027397,2]
[356709309,1743000638007,-500.0,0.00027397,2]
[356709311,1743000638017,-530.64267833,0.00027397,2]
[356709313,1743000638027,-500.0,0.00027397,2]
[356709315,1743000638036,-521.67448323,0.00027397,2]
[356709317,1743000638045,-500.0,0.00027397,2]
[356709319,1743000638054,-500.0,0.00027397,2]
[356709321,1743000638063,-500.0,0.00027397,2]
[356709323,1743000638072,-518.01171437,0.00027397,2]
[356709325,1743000638082,-2763.61,0.00027397,2]
[356709327,1743000638091,-500.0,0.00027397,2]
[356709328,1743000638100,-500.0,0.00027397,2]
[356709329,1743000638109,-2000.0,0.00027397,2]
[356709330,1743000638118,-500.0,0.00027397,2]
[356709331,1743000638127,-526.52854074,0.00027397,2]
[356709332,1743000638136,-500.0,0.00027397,2]
[356709333,1743000638146,-500.0,0.00027397,2]
[356709334,1743000638155,-500.0,0.00027397,2]
[356709335,1743000638164,-500.0,0.00027397,2]
[356709336,1743000638174,-8280.89,0.00027397,2]
[356709337,1743000638183,-500.0,0.00027397,2]
[356709338,1743000638192,-368.36503181,0.00027397,2]
[356709339,1743000638201,-500.0,0.00027397,2]
[356709340,1743000638210,-500.0,0.00027397,2]
[356709341,1743000638219,-500.0,0.00027397,2]
[356709342,1743000638228,-500.0,0.00027397,2]
[356709343,1743000638237,-500.0,0.00027397,2]
[356709344,1743000638246,-500.0,0.00027397,2]
[356709345,1743000638255,-501.29563371,0.00027397,2]
[356709346,1743000638265,-500.0,0.00027397,2]
[356709347,1743000638274,-500.0,0.00027397,2]
[356709348,1743000638283,-500.0,0.00027397,2]
[356709349,1743000638292,-500.0,0.00027397,2]
[356709350,1743000638302,-500.0,0.00027397,2]
[356709351,1743000638311,-500.0,0.00027397,2]
[356709352,1743000638320,-500.0,0.00027397,2]
[356709353,1743000638330,-500.0,0.00027397,2]
[356709354,1743000638338,-500.0,0.00027397,2]
[356709355,1743000638347,-500.0,0.00027397,2]
[356709356,1743000638357,-500.0,0.00027397,2]
[356709357,1743000638366,-500.0,0.00027397,2]
[356709358,1743000638375,-222.78739707,0.00027397,2]
[356709359,1743000638384,-500.0,0.00027397,2]
[356709360,1743000638393,-500.0,0.00027397,2]
[356709361,1743000638402,-500.0,0.00027397,2]
[356709362,1743000638411,-500.0,0.00027397,2]
[356709363,1743000638420,-500.0,0.00027397,2]
[356709364,1743000638429,-500.0,0.00027397,2]
[356709365,1743000638438,-540.99381754,0.00027397,2]
[356709366,1743000638451,-500.0,0.00027397,2]
[356709367,1743000638460,-507.6809171,0.00027397,2]
[356709368,1743000638469,-500.0,0.00027397,2]
[356709369,1743000638478,-500.0,0.00027397,2]
[356709370,1743000638488,-630.63,0.00027397,2]
[356709371,1743000638497,-534.40248749,0.00027397,2]
[356709372,1743000638507,-500.0,0.00027397,2]
[356709373,1743000638516,-571.78713818,0.00027397,2]
[356709374,1743000638527,-500.0,0.00027397,2]
[356709375,1743000638537,-517.78,0.00027397,2]
[356709376,1743000638546,-526.11141264,0.00027397,2]
[356709377,1743000638555,-649.8869138,0.00027397,2]
[356709378,1743000638564,-500.0,0.00027397,2]
[356709379,1743000638574,-500.0,0.00027397,2]
[356709380,1743000638583,-547.29217669,0.00027397,2]
[356709381,1743000638592,-500.0,0.00027397,2]
[356709382,1743000638601,-500.0,0.00027397,2]
[356709383,1743000638610,-500.0,0.00027397,2]
[356709384,1743000638619,-500.0,0.00027397,2]
[356709385,1743000638628,-500.0,0.00027397,2]
[356709386,1743000638637,-500.0,0.00027397,2]
[356709387,1743000638646,-537.49254706,0.00027397,2]
[356709388,1743000638655,-500.0,0.00027397,2]
[356709389,1743000638664,-505.35485505,0.00027397,2]
[356709390,1743000638673,-566.8998955,0.00027397,2]
[356709391,1743000638682,-500.0,0.00027397,2]
[356709392,1743000638691,-577.95640877,0.00027397,2]
[356709393,1743000638700,-618.54665921,0.00027397,2]
[356709394,1743000638710,-517.30449153,0.00027397,2]
[356709395,1743000638719,-508.79063068,0.00027397,2]
[356709396,1743000638728,-546.89737464,0.00027397,2]
[356709397,1743000638738,-573.02387966,0.00027397,2]
[356709398,1743000638747,-500.0,0.00027397,2]
[356709399,1743000638756,-538.82880652,0.00027397,2]
[356709400,1743000638766,-500.0,0.00027397,2]
[356709401,1743000638776,-612.20450314,0.00027397,2]
[356709402,1743000638785,-507.5131626,0.00027397,2]
[356709403,1743000638795,-566.08163041,0.00027397,2]
[356709404,1743000638804,-500.0,0.00027397,2]
[356709405,1743000638813,-506.38207022,0.00027397,2]
[356709406,1743000638822,-500.0,0.00027397,2]
[356709407,1743000638831,-500.0,0.00027397,2]
[356709408,1743000638841,-579.69702788,0.00027397,2]
[356709409,1743000638850,-588.40510152,0.00027397,2]
[356709410,1743000638859,-500.0,0.00027397,2]
[356709411,1743000638868,-578.36680248,0.00027397,2]
[356709412,1743000638877,-517.8065224,0.00027397,2]
[356709413,1743000638887,-501.955293,0.00027397,2]
[356709414,1743000638897,-560.98501443,0.00027397,2]
[356709415,1743000638906,-552.18804337,0.00027397,2]
[356709416,1743000638915,-518.18273143,0.00027397,2]
[356709417,1743000638925,-613.35882446,0.00027397,2]
[356709418,1743000638934,-572.86623699,0.00027397,2]
[356709419,1743000638943,-500.0,0.00027397,2]
[356709420,1743000638952,-441.58980931,0.00027397,2]
[356709421,1743000638961,-511.46577913,0.00027397,2]
[356709422,1743000638971,-500.0,0.00027397,2]
[356709423,1743000638980,-529.80587945,0.00027397,2]
[356709424,1743000638989,-569.71223392,0.00027397,2]
[356709425,1743000638998,-513.7996807,0.00027397,2]
[356709426,1743000639008,-530.94411818,0.00027397,2]
[356709427,1743000639018,-521.25093545,0.00027397,2]
[356709428,1743000639027,-587.30381817,0.00027397,2]
[356709429,1743000639037,-556.49327262,0.00027397,2]
[356709430,1743000639046,-590.34042299,0.00027397,2]
[356709431,1743000639056,-358.019512,0.00027397,2]
[356709432,1743000639065,-529.53404085,0.00027397,2]
[356709433,1743000639075,-500.0,0.00027397,2]
[356709434,1743000639085,-630.03660219,0.00027397,2]
[356709435,1743000639095,-529.49864605,0.00027397,2]
[356709436,1743000639104,-543.15095309,0.00027397,2]
[356709437,1743000639114,-582.9088559,0.00027397,2]
[356709438,1743000639124,-527.738138,0.00027397,2]
[356709439,1743000639134,-346.27980772,0.00027397,2]
[356709440,1743000639144,-533.06615366,0.00027397,2]
[356709441,1743000639153,-509.1948054,0.00027397,2]
[356709442,1743000639163,-174.103081,0.00027397,2]
[356709443,1743000639172,-514.84388698,0.00027397,2]
[356709444,1743000639181,-615.44193979,0.00027397,2]
[356709445,1743000639191,-500.0,0.00027397,2]
[356709446,1743000639200,-500.0,0.00027397,2]
[356709447,1743000639209,-528.55232686,0.00027397,2]
[356709448,1743000639218,-549.50211263,0.00027397,2]
[356709449,1743000639227,-166.033251,0.00027397,2]
[356709450,1743000639236,-608.10422112,0.00027397,2]
[356709451,1743000639246,-542.18863498,0.00027397,2]
[356709452,1743000639256,-500.0,0.00027397,2]
[356709453,1743000639266,-551.39879824,0.00027397,2]
[356709454,1743000639276,-500.0,0.00027397,2]
[356709455,1743000639285,-325.4587626,0.00027397,2]
[356709456,1743000639295,-500.0,0.00027397,2]
[356709457,1743000639305,-618.85213468,0.00027397,2]
[356709458,1743000639314,-500.0,0.00027397,2]
[356709460,1743000639324,-500.0,0.00027397,2]
[356709462,1743000639333,-573.40407382,0.00027397,2]
[356709465,1743000639343,-616.71633642,0.00027397,2]
[356709467,1743000639353,-631.55572343,0.00027397,2]
[356709468,1743000639363,-500.0,0.00027397,2]
[356709471,1743000639372,-500.0,0.00027397,2]
[356709489,1743000639520,-601.83599368,0.00027397,2]
[356709491,1743000639531,-500.0,0.00027397,2]
[356709493,1743000639540,-515.143452,0.00027397,2]
[356709495,1743000639550,-500.0,0.00027397,2]
[356709497,1743000639560,-500.0,0.00027397,2]
[356709499,1743000639571,-500.0,0.00027397,2]
[356709501,1743000639580,-641.09670123,0.00027397,2]
[356709503,1743000639590,-626.68455894,0.00027397,2]
[356709505,1743000639599,-500.0,0.00027397,2]
[356709507,1743000639609,-514.76283243,0.00027397,2]
[356709509,1743000639619,-563.32615451,0.00027397,2]
[356709511,1743000639629,-580.17835058,0.00027397,2]
[356709513,1743000639639,-500.0,0.00027397,2]
[356709516,1743000639648,-573.01386679,0.00027397,2]
[356709518,1743000639658,-500.0,0.00027397,2]
[356709520,1743000639667,-540.19676474,0.00027397,2]
[356709521,1743000639677,-613.48424942,0.00027397,2]
[356709522,1743000639687,-586.59495587,0.00027397,2]
[356709523,1743000639696,-500.0,0.00027397,2]
[356709524,1743000639706,-500.0,0.00027397,2]
[356709525,1743000639715,-500.0,0.00027397,2]
[356709527,1743000639724,-581.07323545,0.00027397,2]
[356709528,1743000639734,-505.16340157,0.00027397,2]
[356709529,1743000639743,-518.22203354,0.00027397,2]
[356709530,1743000639753,-500.0,0.00027397,2]
[356709531,1743000639762,-542.86110912,0.00027397,2]
[356709532,1743000639773,-543.15481286,0.00027397,2]
[356709533,1743000639782,-528.79538806,0.00027397,2]
[356709534,1743000639791,-500.0,0.00027397,2]
[356709535,1743000639801,-500.0,0.00027397,2]
[356709536,1743000639811,-500.0,0.00027397,2]
[356709537,1743000639821,-518.6174407,0.00027397,2]
[356709538,1743000639830,-553.10120468,0.00027397,2]
[356709539,1743000639839,-500.0,0.00027397,2]
[356709540,1743000639849,-536.85249483,0.00027397,2]
[356709541,1743000639858,-500.0,0.00027397,2]
[356709542,1743000639867,-540.88064523,0.00027397,2]
[356709543,1743000639877,-500.0,0.00027397,2]
[356709544,1743000639886,-500.0,0.00027397,2]
[356709545,1743000639895,-500.0,0.00027397,2]
[356709546,1743000639906,-509.70624311,0.00027397,2]
[356709547,1743000639915,-627.7667146,0.00027397,2]
[356709548,1743000639924,-500.0,0.00027397,2]
[356709549,1743000639934,-500.0,0.00027397,2]
[356709550,1743000639944,-623.1155229,0.00027397,2]
[356709551,1743000639953,-606.28608372,0.00027397,2]
[356709552,1743000639963,-500.0,0.00027397,2]
[356709553,1743000639973,-500.0,0.00027397,2]
[356709554,1743000639982,-500.0,0.00027397,2]
[356709555,1743000639993,-617.82276327,0.00027397,2]
[356709556,1743000640003,-500.0,0.00027397,2]
[356709557,1743000640012,-500.0,0.00027397,2]
[356709558,1743000640022,-519.04047935,0.00027397,2]
[356709559,1743000640031,-500.0,0.00027397,2]
[356709560,1743000640041,-519.03054533,0.00027397,2]
[356709561,1743000640050,-533.38261108,0.00027397,2]
[356709562,1743000640060,-549.11678686,0.00027397,2]
[356709563,1743000640069,-500.0,0.00027397,2]
[356709564,1743000640079,-531.57227486,0.00027397,2]
[356709565,1743000640088,-545.7913932,0.00027397,2]
[356709566,1743000640098,-500.0,0.00027397,2]
[356709567,1743000640107,-500.0,0.00027397,2]
[356709568,1743000640117,-500.0,0.00027397,2]
[356709569,1743000640127,-500.0,0.00027397,2]
[356709570,1743000640136,-500.0,0.00027397,2]
[356709571,1743000640145,-500.0,0.00027397,2]
[356709572,1743000640154,-500.0,0.00027397,2]
[356709573,1743000640164,-500.0,0.00027397,2]
[356709574,1743000640173,-500.0,0.00027397,2]
[356709575,1743000640183,-500.0,0.00027397,2]
[356709576,1743000640192,-500.0,0.00027397,2]
[356709577,1743000640202,-500.0,0.00027397,2]
[356709578,1743000640211,-537.75387421,0.00027397,2]
[356709579,1743000640221,-500.0,0.00027397,2]
[356709580,1743000640230,-500.0,0.00027397,2]
[356709581,1743000640239,-514.62337496,0.00027397,2]
[356709582,1743000640249,-500.0,0.00027397,2]
[356709583,1743000640258,-611.97885653,0.00027397,2]
[356709584,1743000640268,-504.78933057,0.00027397,2]
[356709585,1743000640278,-500.0,0.00027397,2]
[356709586,1743000640288,-509.57598452,0.00027397,2]
[356709587,1743000640297,-500.0,0.00027397,2]
[356709588,1743000640307,-500.0,0.00027397,2]
[356709589,1743000640316,-500.0,0.00027397,2]
[356709590,1743000640325,-500.0,0.00027397,2]
[356709591,1743000640335,-500.0,0.00027397,2]
[356709592,1743000640344,-500.0,0.00027397,2]
[356709593,1743000640354,-500.0,0.00027397,2]
[356709594,1743000640363,-500.0,0.00027397,2]
[356709595,1743000640373,-500.0,0.00027397,2]
[356709596,1743000640383,-500.0,0.00027397,2]
[356709597,1743000640393,-567.67773255,0.00027397,2]
[356709598,1743000640402,-545.69820588,0.00027397,2]
[356709599,1743000640411,-500.0,0.00027397,2]
[356709600,1743000640421,-500.0,0.00027397,2]
[356709601,1743000640430,-540.8931288,0.00027397,2]
[356709602,1743000640441,-500.0,0.00027397,2]
[356709603,1743000640452,-500.0,0.00027397,2]
[356709604,1743000640462,-500.0,0.00027397,2]
[356709605,1743000640471,-500.0,0.00027397,2]
[356709606,1743000640480,-500.0,0.00027397,2]
[356709607,1743000640490,-500.0,0.00027397,2]
[356709608,1743000640500,-500.0,0.00027397,2]
[356709609,1743000640509,-508.21318873,0.00027397,2]
[356709610,1743000640521,-500.0,0.00027397,2]
[356709611,1743000640530,-500.0,0.00027397,2]
[356709612,1743000640543,-532.62360097,0.00027397,2]
[356709613,1743000640553,-538.84068956,0.00027397,2]
[356709614,1743000640564,-500.0,0.00027397,2]
[356709615,1743000640575,-526.94409123,0.00027397,2]
[356709616,1743000640585,-253.45723711,0.00027397,2]
[356709617,1743000640595,-508.67282078,0.00027397,2]
[356709618,1743000640605,-500.0,0.00027397,2]
[356709619,1743000640616,-500.0,0.00027397,2]
[356709620,1743000640626,-518.83661927,0.00027397,2]
[356709621,1743000640637,-500.0,0.00027397,2]
[356709622,1743000640647,-500.0,0.00027397,2]
[356709623,1743000640657,-500.0,0.00027397,2]
[356709624,1743000640667,-500.0,0.00027397,2]
[356709625,1743000640678,-289.74347538,0.00027397,2]
[356709626,1743000640688,-500.0,0.00027397,2]
[356709627,1743000640698,-500.0,0.00027397,2]
[356709628,1743000640708,-500.0,0.00027397,2]
[356709629,1743000640718,-528.38998392,0.00027397,2]
[356709630,1743000640729,-434.15110323,0.00027397,2]
[356709631,1743000640740,-500.0,0.00027397,2]
[356709632,1743000640752,-500.0,0.00027397,2]
[356709633,1743000640763,-500.0,0.00027397,2]
[356709634,1743000640782,-500.0,0.00027397,2]
[356709635,1743000640794,-500.0,0.00027397,2]
[356709636,1743000640805,-500.0,0.00027397,2]
[356709637,1743000640817,-500.0,0.00027397,2]
[356709638,1743000640829,-500.0,0.00027397,2]
[356709639,1743000640840,-500.0,0.00027397,2]
[356709640,1743000640852,-500.0,0.00027397,2]
[356709641,1743000640864,-500.0,0.00027397,2]
[356709642,1743000640875,-500.0,0.00027397,2]
[356709643,1743000640886,-500.0,0.00027397,2]
[356709644,1743000640897,-150.0,0.00027397,2]
[356709645,1743000640908,-632.92588362,0.00027397,2]
[356709646,1743000640919,-500.0,0.00027397,2]
[356709647,1743000640930,-500.0,0.00027397,2]
[356709648,1743000640940,-543.33862203,0.00027397,2]
[356709649,1743000640950,-500.0,0.00027397,2]
[356709650,1743000640961,-622.18,0.00027397,2]
[356709651,1743000640971,-500.0,0.00027397,2]
[356709652,1743000640981,-500.0,0.00027397,2]
[356709653,1743000640991,-5041.95242919,0.00027397,2]
[356709654,1743000641002,-500.0,0.00027397,2]
[356709655,1743000641012,-528.700956,0.00027397,2]
[356709656,1743000641027,-500.0,0.00027397,2]
[356709657,1743000641039,-500.0,0.00027397,2]